bitfinex/quotes_ETHUSD_20250913
["timestamp","ask_amount","ask_price","bid_price","bid_amount"]
[1757785077995,10.56099441,4633.3,4633.2,0.001]
[1757785080696,10.64736819,4633.3,4633.2,0.001]
[1757785083400,10.76828853,4633.3,4633.2,0.001]
[1757785084081,7.13328853,4633.3,4633.2,0.001]
[1757785084260,10.76828853,4633.3,4633.2,0.001]
[1757785085294,7.13328853,4633.3,4633.2,0.001]
[1757785085502,10.76828853,4633.3,4633.2,0.001]
[1757785086811,10.17188853,4633.3,4633.2,0.001]
[1757785088108,9.73138853,4633.3,4633.2,0.001]
[1757785088308,10.75468853,4633.3,4633.2,0.001]
[1757785088714,10.75468853,4633.3,4632.6,0.001]
[1757785088715,2.15838207,4633.1,4632.6,0.001]
[1757785089012,8.44154718,4632.7,4632.6,0.001]
[1757785089311,19.38194718,4632.7,4632.6,0.001]
[1757785089511,20.40524718,4632.7,4632.6,0.001]
[1757785089674,20.491626,4632.7,4632.6,0.001]
[1757785090058,20.92543151,4632.7,4632.6,0.001]
[1757785090513,20.36803151,4632.7,4632.6,0.001]
[1757785090810,19.90213151,4632.7,4632.6,0.001]
[1757785092120,20.92543151,4632.7,4632.6,0.001]
[1757785093952,6.28297875,4632.2,4632.1,1e-08]
[1757785094134,9.91797875,4632.2,4632.1,1e-08]
[1757785094440,13.38548018,4632.2,4632.1,1e-08]
[1757785094643,13.4718687,4632.2,4632.1,1e-08]
[1757785094846,20.4918687,4632.2,4632.1,1e-08]
[1757785095143,20.92567421,4632.2,4632.1,1e-08]
[1757785097571,20.36827421,4632.2,4632.1,1e-08]
[1757785097749,12.69899546,4632.2,4632.1,1e-08]
[1757785098049,15.90018995,4632.2,4632.1,0.86330001]
[1757785098222,15.90018995,4632.2,4632.1,1e-08]
[1757785099010,16.20248995,4632.2,4632.1,1e-08]
[1757785099445,17.22628995,4632.2,4632.1,1e-08]
[1757785100018,17.34721937,4632.2,4632.1,1e-08]
[1757785100231,17.34724825,4632.2,4632.1,1e-08]
[1757785101739,17.54885375,4632.2,4632.1,1e-08]
[1757785103951,12.38614825,4632.2,4632.1,0.29750001]
[1757785104150,16.02014825,4632.2,4632.1,0.29750001]
[1757785104360,16.32244825,4632.2,4632.1,1e-08]
[1757785104560,2.15908109,4631.6,4631.5,1e-08]
[1757785104725,12.83150415,4631.6,4631.5,1e-08]
[1757785105092,12.83150415,4631.6,4630.4,0.5658]
[1757785105093,2.15959399,4630.5,4630.4,0.5658]
[1757785105227,6.24809116,4630.5,4630.4,0.2975]
[1757785105424,6.22650579,4630.5,4630.4,0.2975]
[1757785106475,6.68450579,4630.5,4630.4,0.2975]
[1757785108080,2.15964063,4630.4,4630.0,0.5658]
[1757785108262,2.181226,4630.4,4630.0,0.5658]
[1757785108430,2.181226,4630.4,4630.3,0.2985]
[1757785108853,6.382026,4630.4,4630.3,1.3223]
[1757785109047,6.36044063,4630.4,4630.3,1.3223]
[1757785109493,6.36044063,4630.4,4630.3,0.8643]
[1757785109999,2.72544063,4630.4,4630.3,1.3223]
[1757785110153,6.382026,4630.4,4630.3,1.3223]
[1757785110354,6.36044063,4630.4,4630.3,1.3223]
[1757785111555,2.72544063,4630.4,4630.3,1.3223]
[1757785111888,6.382026,4630.4,4630.3,1.3223]
[1757785112089,6.36044063,4630.4,4630.3,1.3223]
[1757785113170,6.36044063,4630.4,4630.3,0.8643]
[1757785113700,6.36044063,4630.4,4630.3,1.3223]
[1757785115090,6.36044063,4630.4,4630.3,0.2985]
[1757785116675,6.36044063,4630.4,4630.3,0.001]
[1757785120204,7.73069649,4630.4,4630.3,0.001]
[1757785120407,7.42839649,4630.4,4630.3,0.001]
[1757785121385,14.44839649,4630.4,4630.3,0.2985]
[1757785121573,10.81339649,4630.4,4630.3,0.2985]
[1757785121772,13.38044063,4630.4,4630.3,1.3223]
[1757785121974,7.5858,4630.4,4630.3,1.3223]
[1757785122213,10.655,4630.4,4630.3,1.3223]
[1757785122410,12.81464063,4630.4,4630.3,1.3223]
[1757785125890,9.17964063,4630.4,4630.3,1.3223]
[1757785126094,12.81464063,4630.4,4630.3,1.3223]
[1757785126384,9.17964063,4630.4,4630.3,1.3223]
[1757785126589,12.81464063,4630.4,4630.3,1.3223]
[1757785127143,12.81464063,4630.4,4630.3,0.001]
[1757785127295,14.31205955,4630.4,4630.3,0.001]
[1757785128331,12.81464063,4630.4,4630.3,0.001]
[1757785129326,13.12504063,4630.4,4630.3,0.001]
[1757785129531,13.59994063,4630.4,4630.3,0.001]
[1757785131614,13.12504063,4630.4,4630.3,0.001]
[1757785131937,12.81464063,4630.4,4630.3,0.2967]
[1757785133455,13.10204063,4630.4,4630.3,0.001]
[1757785135280,12.81464063,4630.4,4630.3,0.001]
[1757785135487,12.81464063,4630.4,4630.3,0.2967]
[1757785140866,9.17964063,4630.4,4630.3,0.2967]
[1757785141066,12.81464063,4630.4,4630.3,0.8408]
[1757785142000,10.655,4630.4,4630.3,0.8408]
[1757785142311,12.81464063,4630.4,4630.3,1.3149]
[1757785143405,7.02,4630.4,4630.3,1.3149]
[1757785143610,0.002,4630.8,4630.4,2.95164041]
[1757785143916,0.002,4630.8,4630.6,1.16388985]
[1757785144122,0.002,4630.8,4630.7,0.2957]
[1757785144277,0.002,4630.8,4630.7,1.3139]
[1757785144672,0.002,4630.8,4630.7,0.8398]
[1757785144875,2.18303946,4630.8,4630.6,1.16388985]
[1757785145092,2.15950072,4630.7,4630.6,1.16388985]
[1757785145289,2.15954735,4630.6,4630.5,1.16388985]
[1757785145693,2.15959399,4630.5,4630.4,1.16388985]
[1757785146182,0.1072,4630.4,4630.3,1.16488985]
[1757785146381,2.26684063,4630.4,4630.3,1.16488985]
[1757785146800,2.288426,4630.4,4630.3,1.16488985]
[1757785147698,2.26684063,4630.4,4630.3,0.001]
[1757785147900,2.55424063,4630.4,4630.3,0.001]
[1757785148212,4.40798028,4630.4,4630.3,0.001]
[1757785148383,8.04198028,4630.4,4630.3,0.001]
[1757785149288,7.48408028,4630.4,4630.3,0.001]
[1757785149493,6.64714063,4630.4,4630.3,0.001]
[1757785149880,6.18824063,4630.4,4630.3,0.001]
[1757785151848,6.64714063,4630.4,4630.3,0.001]
[1757785155254,7.20504063,4630.4,4630.3,0.001]
[1757785159358,14.22504063,4630.4,4630.3,0.001]
[1757785161682,9.28684063,4630.4,4630.3,0.001]
[1757785161862,12.81364063,4630.4,4630.3,0.3054]
[1757785162183,12.81364063,4630.4,4630.3,0.001]
[1757785162184,13.11104063,4630.4,4630.3,0.001]
[1757785162484,13.55044063,4630.4,4630.3,0.001]
[1757785163586,14.09744063,4630.4,4630.3,0.001]
[1757785174570,14.21864128,4630.4,4630.3,0.001]
[1757785176419,13.67164128,4630.4,4630.3,0.001]
[1757785176798,13.23224128,4630.4,4630.3,0.001]
[1757785177528,12.93384128,4630.4,4630.3,0.8344]
[1757785178092,12.93384128,4630.4,4630.3,0.3054]
[1757785181025,12.93384128,4630.4,4630.3,0.001]
[1757785181225,13.23124128,4630.4,4630.3,0.001]
[1757785181733,13.67064128,4630.4,4630.3,0.001]
[1757785183329,13.23124128,4630.4,4630.3,0.001]
[1757785188603,13.23142049,4630.4,4630.3,0.001]
[1757785189230,13.23142078,4630.4,4630.3,0.001]
[1757785189645,12.93402078,4630.4,4630.3,0.2883]
[1757785190206,12.93402078,4630.4,4630.3,0.001]
[1757785190434,12.94492478,4630.4,4630.3,0.001]
[1757785191149,13.25412478,4630.4,4630.3,0.001]
[1757785192537,12.94392478,4630.4,4630.3,0.001]
[1757785192743,13.25312478,4630.4,4630.3,0.001]
[1757785192946,14.23832478,4630.4,4630.3,0.001]
[1757785193644,13.71402478,4630.4,4630.3,0.001]
[1757785193822,13.25312478,4630.4,4630.3,0.001]
[1757785194248,13.25312798,4630.4,4630.3,0.001]
[1757785194455,12.94392798,4630.4,4630.3,0.001]
[1757785195862,12.94392798,4630.4,4630.3,0.79]
[1757785196158,12.94392798,4630.4,4630.3,1.2334]
[1757785196468,12.94392798,4630.4,4630.3,0.2883]
[1757785196635,12.94392798,4630.4,4630.3,0.001]
[1757785196961,13.25312798,4630.4,4630.3,0.001]
[1757785197128,13.71402798,4630.4,4630.3,0.001]
[1757785197326,12.94392798,4630.4,4630.3,0.001]
[1757785197527,12.94392798,4630.4,4630.3,0.2883]
[1757785198868,9.31192798,4630.4,4630.3,0.2883]
[1757785199037,12.94392798,4630.4,4630.3,0.2883]
[1757785200503,12.94392798,4630.4,4630.3,1.2334]
[1757785201158,9.31192798,4630.4,4630.3,0.79]
[1757785201353,12.94392798,4630.4,4630.3,1.2334]
[1757785201553,9.31192798,4630.4,4630.3,1.2334]
[1757785202292,9.62112798,4630.4,4630.3,0.001]
[1757785202443,14.76247783,4630.4,4630.3,0.001]
[1757785202847,15.22337783,4630.4,4630.3,0.001]
[1757785203047,15.74767506,4630.4,4630.3,0.001]
[1757785205082,15.22337506,4630.4,4630.3,0.001]
[1757785205463,14.45327506,4630.4,4630.3,0.001]
[1757785207457,14.76247506,4630.4,4630.3,0.001]
[1757785207992,15.74767506,4630.4,4630.3,0.001]
[1757785210410,18.74767506,4630.4,4630.3,0.001]
[1757785210618,20.24496396,4630.4,4630.3,0.001]
[1757785210820,13.22496396,4630.4,4630.3,0.001]
[1757785211628,11.92996396,4630.4,4630.3,0.001]
[1757785213199,12.01639784,4630.4,4630.3,0.001]
[1757785214487,7.09099784,4630.4,4630.3,0.001]
[1757785214727,9.00935909,4630.4,4630.3,0.7317]
[1757785215031,9.00935909,4630.4,4630.3,1.2334]
[1757785215210,9.00935909,4630.4,4630.3,0.79]
[1757785216289,9.00935909,4630.4,4630.3,0.2883]
[1757785216689,5.37835909,4630.4,4630.3,0.2883]
[1757785217000,8.88797851,4630.4,4630.3,0.2883]
[1757785217308,0.117104,4630.3,4629.8,0.001]
[1757785217619,2.26702721,4630.0,4629.8,0.001]
[1757785217818,6.65258537,4629.9,4629.8,1.0208]
[1757785218019,3.12138058,4629.9,4629.8,1.0208]
[1757785218200,8.81245923,4629.9,4629.8,1.3368]
[1757785218382,8.91225444,4629.9,4629.8,1.3368]
[1757785220725,8.79087386,4629.9,4629.8,1.3368]
[1757785222835,5.79087386,4629.9,4629.8,1.3368]
[1757785222993,2.15982679,4630.1,4629.8,1.47048]
[1757785223189,2.15982679,4630.1,4629.9,1.0198]
[1757785223510,5.78974373,4630.2,4629.9,1.0198]
[1757785223710,2.15978056,4630.1,4630.0,1.3358]
[1757785223911,2.15974401,4630.2,4630.1,1.0198]
[1757785224127,2.15974401,4630.2,4630.1,1.3358]
[1757785224128,5.78974401,4630.2,4630.1,1.3358]
[1757785227143,2.15974401,4630.2,4630.1,1.3358]
[1757785227350,5.78974401,4630.2,4630.1,1.3358]
[1757785227644,0.009904,4630.3,4630.1,1.3358]
[1757785227645,0.009904,4630.3,4630.1,1.45518]
[1757785227947,0.009904,4630.3,4630.2,0.9668]
[1757785228349,0.009904,4630.3,4630.2,1.2785]
[1757785229550,0.009904,4630.3,4630.2,1.30009733]
[1757785233351,0.009904,4630.3,4630.2,0.8223]
[1757785233528,0.009904,4630.3,4630.2,1.2785]
[1757785234513,0.009904,4630.3,4630.2,0.8223]
[1757785236339,0.009904,4630.3,4630.2,0.3117]
[1757785236340,2.16959127,4630.3,4630.2,0.3117]
[1757785236540,2.15973392,4630.2,4630.1,0.001]
[1757785236740,2.63351929,4630.2,4630.1,0.001]
[1757785236936,2.93481929,4630.2,4630.1,0.001]
[1757785237720,2.48261929,4630.2,4630.1,0.001]
[1757785239364,2.93481929,4630.2,4630.1,0.001]
[1757785239952,3.43081929,4630.2,4630.1,0.001]
[1757785240627,2.93481929,4630.2,4630.1,0.001]
[1757785241457,3.53886035,4630.2,4630.1,0.001]
[1757785241844,3.99106035,4630.2,4630.1,0.001]
[1757785242833,2.15973392,4630.2,4630.1,0.8233]
[1757785243243,0.009904,4630.3,4630.1,0.8233]
[1757785243467,2.16959127,4630.3,4630.2,0.5106]
[1757785243670,0.009904,4630.3,4630.2,0.8223]
[1757785243853,0.009904,4630.3,4630.2,1.2785]
[1757785246072,0.009904,4630.3,4630.2,1.41530978]
[1757785246370,0.009904,4630.3,4630.2,3.5750437]
[1757785247639,0.009904,4630.3,4630.2,0.95240978]
[1757785247889,0.009904,4630.3,4630.2,4.58040978]
[1757785248055,0.009904,4630.3,4630.2,5.04330978]
[1757785248465,0.009904,4630.3,4630.2,0.3117]
[1757785249398,2.47361999,4630.3,4630.1,0.001]
[1757785249694,0.009904,4630.3,4630.1,0.001]
[1757785250190,0.009904,4630.3,4630.2,0.2931]
[1757785250401,0.009904,4630.3,4630.2,1.2337]
[1757785250765,0.009904,4630.3,4630.2,0.7908]
[1757785251286,0.009904,4630.3,4630.2,0.2931]
[1757785251674,0.009904,4630.3,4630.2,0.81239733]
[1757785251865,0.009904,4630.3,4630.2,2.03170813]
[1757785252476,0.009904,4630.3,4630.2,4.19144205]
[1757785252779,0.009904,4630.3,4630.2,2.03170813]
[1757785254602,0.011904,4630.3,4630.2,2.03170813]
[1757785256295,0.011904,4630.3,4630.2,1.58880813]
[1757785256679,0.011904,4630.3,4630.2,1.0695108]
[1757785260299,2.15973392,4630.2,4630.1,0.001]
[1757785260498,0.9464,4630.2,4630.1,3.627]
[1757785260717,1.2335,4630.2,4630.1,3.627]
[1757785261515,0.119104,4630.3,4630.1,3.627]
[1757785262813,0.119104,4630.3,4630.1,3.6485978]
[1757785263605,0.119104,4630.3,4630.1,3.627]
[1757785264805,0.119104,4630.3,4630.2,0.3133]
[1757785265029,0.119104,4630.3,4630.2,1.78807614]
[1757785265030,0.011904,4630.3,4630.2,1.78807614]
[1757785265725,0.011904,4630.3,4630.2,3.94781006]
[1757785266229,0.011904,4630.3,4630.2,3.92621273]
[1757785266540,0.011904,4630.3,4630.2,1.76647881]
[1757785266700,0.011904,4630.3,4630.2,1.32357881]
[1757785267121,0.011904,4630.3,4630.2,0.82587881]
[1757785272973,0.011904,4630.3,4630.2,3.94781006]
[1757785273124,0.011904,4630.3,4630.2,1.78807614]
[1757785274251,0.011904,4630.3,4630.2,1.76647881]
[1757785275045,0.011904,4630.3,4630.2,1.78807614]
[1757785275554,0.011904,4630.3,4630.2,1.34517614]
[1757785276321,0.011904,4630.3,4630.2,3.50491006]
[1757785276556,0.011904,4630.3,4630.2,1.34517614]
[1757785277467,0.011904,4630.3,4630.2,3.50491006]
[1757785277766,0.011904,4630.3,4630.2,3.94711006]
[1757785278163,0.011904,4630.3,4630.2,1.78737614]
[1757785278881,0.011904,4630.3,4630.2,1.34517614]
[1757785280045,0.011904,4630.3,4630.2,1.32357881]
[1757785280271,0.011904,4630.3,4630.2,0.82587881]
[1757785280954,0.011904,4630.3,4630.2,0.51257881]
[1757785281458,0.011904,4630.3,4630.1,3.7342]
[1757785281459,0.316304,4630.3,4630.1,3.7342]
[1757785281868,0.316304,4630.3,4630.1,0.9002]
[1757785281869,0.4434,4630.2,4630.1,0.9002]
[1757785282041,0.3044,4630.2,4630.1,4.5252]
[1757785283076,0.011904,4630.3,4630.1,4.5252]
[1757785283784,1.2658,4630.2,4630.1,0.001]
[1757785284275,1.2658,4630.2,4630.1,3.626]
[1757785284656,1.2658,4630.2,4630.1,0.001]
[1757785284999,1.2658,4630.2,4630.1,3.625]
[1757785287571,1.2658,4630.2,4630.1,0.001]
[1757785287770,1.2658,4630.2,4630.1,4.78568624]
[1757785289776,0.7478,4630.2,4630.1,4.78568624]
[1757785290000,0.011904,4630.3,4630.1,4.78568624]
[1757785290310,0.011904,4630.3,4630.2,0.02159733]
[1757785290996,0.011904,4630.3,4630.2,0.32029733]
[1757785291474,0.011904,4630.3,4630.2,1.48098357]
[1757785291914,0.011904,4630.3,4630.2,1.18228357]
[1757785292127,0.316304,4630.3,4630.2,1.18228357]
[1757785294395,0.011904,4630.3,4630.2,1.18228357]
[1757785295079,0.011904,4630.3,4630.2,0.02159733]
[1757785295492,0.011904,4630.3,4630.2,0.32029733]
[1757785295695,0.011904,4630.3,4630.2,1.25489733]
[1757785297509,0.011904,4630.3,4630.2,1.2333]
[1757785297901,0.011904,4630.3,4630.2,0.7911]
[1757785298103,0.011904,4630.3,4630.2,0.2987]
[1757785298297,0.011904,4630.3,4630.1,4.78568624]
[1757785299384,0.011904,4630.3,4630.2,1.45938624]
[1757785302153,0.011904,4630.3,4630.2,0.2987]
[1757785302450,0.011904,4630.3,4630.2,2.45843392]
[1757785302653,0.011904,4630.3,4630.2,3.25009483]
[1757785302822,0.011904,4630.3,4630.2,3.71389216]
[1757785303652,0.011904,4630.3,4630.2,1.55415824]
[1757785303847,0.011904,4630.3,4630.2,3.27169216]
[1757785304050,0.011904,4630.3,4630.2,1.11195824]
[1757785304658,0.011904,4630.3,4630.2,0.61955824]
[1757785305162,0.011904,4630.3,4630.2,4.06369216]
[1757785305374,0.011904,4630.3,4630.2,7.61309216]
[1757785305661,0.011904,4630.3,4630.2,7.70069483]
[1757785310060,0.011904,4630.3,4630.2,9.24688132]
[1757785310263,0.011904,4630.3,4630.2,7.70069483]
[1757785311963,0.011904,4630.3,4630.2,9.24749179]
[1757785315261,0.011904,4630.3,4630.2,7.70069483]
[1757785315423,0.011904,4630.3,4630.2,9.24741185]
[1757785316386,0.011904,4630.3,4630.2,7.70069483]
[1757785323290,0.011904,4630.3,4630.2,7.25849483]
[1757785323500,0.011904,4630.3,4630.2,6.76609483]
[1757785324197,0.011904,4630.3,4630.2,7.67909483]
[1757785324707,0.011904,4630.3,4630.2,9.22591011]
[1757785325302,0.011904,4630.3,4630.2,7.67909483]
[1757785325609,0.011904,4630.3,4630.2,7.23319483]
[1757785325774,0.011904,4630.3,4630.2,7.67909483]
[1757785326367,1e-08,4630.3,4630.2,7.67909483]
[1757785334016,1e-08,4630.3,4630.2,7.23319483]
[1757785335510,1e-08,4630.3,4630.2,6.76609483]
[1757785335907,1e-08,4630.3,4630.2,11.29799483]
[1757785337332,1e-08,4630.3,4630.2,10.86039483]
[1757785338453,1e-08,4630.3,4630.2,11.29799483]
[1757785341025,1e-08,4630.3,4630.2,10.86039483]
[1757785341829,1e-08,4630.3,4630.2,10.38509483]
[1757785342447,1e-08,4630.3,4630.2,10.08639483]
[1757785343840,1e-08,4630.3,4630.2,12.02132532]
[1757785344243,0.002,4630.4,4630.3,5.95168727]
[1757785344444,0.002,4630.4,4630.3,7.58587093]
[1757785344626,0.3123,4630.4,4630.3,9.52080142]
[1757785345062,0.7671,4630.4,4630.3,9.98750142]
[1757785345360,0.779,4630.4,4630.3,8.05257093]
[1757785345559,1.2338,4630.4,4630.3,10.03638727]
[1757785345733,1.2338,4630.4,4630.3,9.56968727]
[1757785346368,1.2338,4630.4,4630.3,5.95168727]
[1757785346535,1.2338,4630.4,4630.3,9.56968727]
[1757785346734,1.2338,4630.4,4630.3,9.56868727]
[1757785347858,1.2338,4630.4,4630.3,10.23807205]
[1757785348562,1.2338,4630.4,4630.3,10.88594815]
[1757785352275,1.2338,4630.4,4630.3,12.82087864]
[1757785355687,1.2338,4630.4,4630.3,10.88594815]
[1757785359190,0.7671,4630.4,4630.3,10.88594815]
[1757785360291,0.002,4630.4,4630.3,11.19074815]
[1757785360461,0.00035832,4630.4,4630.3,11.19074815]
[1757785361087,0.00035832,4630.4,4630.3,14.30031196]
[1757785361390,0.002,4630.8,4630.7,5.95150072]
[1757785361596,0.002,4630.8,4630.7,10.67860761]
[1757785361757,0.002,4630.8,4630.7,11.09060761]
[1757785362090,0.002,4630.8,4630.7,11.54740761]
[1757785362311,0.002,4630.8,4630.7,13.20440761]
[1757785365588,1e-08,4630.9,4630.8,5.95145409]
[1757785365775,1e-08,4630.9,4630.8,38.47702817]
[1757785365979,1e-08,4630.9,4630.8,38.79352817]
[1757785368603,1e-08,4630.9,4630.8,38.32262817]
[1757785368787,1e-08,4630.9,4630.8,38.06089485]
[1757785369303,1e-08,4630.9,4630.8,38.53179485]
[1757785369482,1e-08,4630.9,4630.8,40.88689485]
[1757785370094,1e-08,4630.9,4630.8,41.20339485]
[1757785370486,1e-08,4630.9,4630.8,40.88689485]
[1757785370685,0.31230001,4630.9,4630.8,10.88689485]
[1757785371200,0.4698,4631.1,4631.0,2.15936082]
[1757785371384,0.4698,4631.1,4631.0,11.44174075]
[1757785371585,0.7639,4631.1,4631.0,11.52734715]
[1757785372178,0.7639,4631.1,4631.0,12.17508616]
[1757785372380,0.2941,4631.1,4631.0,12.17508616]
[1757785373783,0.2961,4631.1,4631.0,12.17508616]
[1757785374108,0.002,4631.1,4631.0,12.92518616]
[1757785374313,0.002,4631.1,4631.0,12.46108616]
[1757785374810,0.002,4631.1,4631.0,12.17508616]
[1757785380185,0.002,4631.1,4631.0,6.70629983]
[1757785380186,0.7514,4631.1,4631.0,6.70629983]
[1757785380383,1.2081,4631.1,4631.0,10.32029983]
[1757785380916,1.2081,4631.1,4631.0,6.70629983]
[1757785381115,1.2081,4631.1,4631.0,11.97529983]
[1757785381312,1.2081,4631.1,4631.0,6.70629983]
[1757785381724,1.2081,4631.1,4631.0,11.97529983]
[1757785382583,1.2081,4631.1,4631.0,6.70629983]
[1757785382788,1.2081,4631.1,4631.0,11.97529983]
[1757785382984,1.2081,4631.1,4631.0,6.70629983]
[1757785383213,1.2081,4631.1,4631.0,11.97529983]
[1757785383917,1.2081,4631.1,4631.0,6.70629983]
[1757785384124,1.2081,4631.1,4631.0,11.97529983]
[1757785384730,1.2081,4631.1,4631.0,7.57029983]
[1757785384906,1.2081,4631.1,4631.0,7.53556082]
[1757785385108,1.2081,4631.1,4631.0,10.53556082]
[1757785387135,0.2961,4631.1,4631.0,11.32756082]
[1757785387511,0.002,4631.1,4631.0,12.17895271]
[1757785387703,0.002,4631.1,4631.0,12.64305271]
[1757785387904,0.002,4631.1,4631.0,13.36278603]
[1757785388348,0.002,4631.1,4631.0,13.65888603]
[1757785388546,0.002,4631.1,4631.0,13.96508334]
[1757785388707,0.002,4631.1,4631.0,13.65888603]
[1757785390339,0.00021081,4631.1,4631.0,15.58916067]
[1757785390639,0.00021081,4631.1,4631.0,43.65888603]
[1757785392052,0.002,4631.3,4631.2,2.95126757]
[1757785392257,0.002,4631.3,4631.2,11.72401207]
[1757785392457,0.002,4631.3,4631.2,12.9105194]
[1757785393346,0.002,4631.3,4631.2,14.84205488]
[1757785394435,0.002,4631.3,4631.2,12.9105194]
[1757785395833,0.002,4631.3,4631.2,14.84205488]
[1757785396501,0.002,4631.3,4631.2,44.84205488]
[1757785396631,0.002,4631.3,4631.2,44.91781076]
[1757785396968,0.002,4631.3,4631.2,42.98627528]
[1757785400357,0.00063253,4631.6,4631.5,2.95112771]
[1757785400573,0.00063253,4631.6,4631.5,10.76420262]
[1757785400773,0.00063253,4631.6,4631.5,10.74261135]
[1757785401060,0.00063253,4631.6,4631.5,12.38721135]
[1757785401393,0.40203253,4632.3,4632.2,2.95080143]
[1757785401597,1.16283253,4632.3,4632.2,12.76480605]
[1757785401797,1.16283253,4632.3,4632.2,12.87200605]
[1757785403257,0.2939,4632.3,4632.2,12.87200605]
[1757785403694,1.2062,4632.3,4632.2,12.87200605]
[1757785404194,1.2062,4632.3,4632.2,12.9780734]
[1757785405647,1.2062,4632.3,4632.2,12.8708734]
[1757785409597,1.2082,4632.3,4632.2,12.8708734]
[1757785411284,0.002,4632.3,4632.2,13.42030394]
[1757785411594,0.2959,4632.3,4632.2,13.42030394]
[1757785411760,0.7413,4632.3,4632.2,13.42030394]
[1757785412989,0.7413,4632.3,4632.2,11.87329932]
[1757785413962,0.7413,4632.3,4632.2,13.41917427]
[1757785414184,0.7413,4632.3,4632.2,11.87329932]
[1757785415785,0.7413,4632.3,4632.2,11.98049932]
[1757785416385,0.2959,4632.3,4632.2,11.98049932]
[1757785416593,0.2201536,4632.3,4632.2,11.98049932]
[1757785417099,0.2201536,4632.3,4632.2,12.44939932]
[1757785421503,0.002,4632.7,4632.5,2.15862426]
[1757785421805,0.002,4632.7,4632.2,12.74629932]
[1757785421806,0.002,4632.7,4632.6,3.63058615]
[1757785422225,0.7628,4632.7,4632.6,3.63058615]
[1757785422677,1.2082,4632.7,4632.6,5.78920118]
[1757785422977,1.2082,4632.7,4632.6,5.76761503]
[1757785426377,0.7413,4632.7,4632.6,7.31394099]
[1757785427997,0.002,4632.7,4632.6,7.31394099]
[1757785429152,0.3124,4632.7,4632.6,7.31394099]
[1757785429299,0.7471,4632.7,4632.6,7.31394099]
[1757785429698,0.3124,4632.7,4632.6,7.31394099]
[1757785431621,0.781,4632.7,4632.6,7.31394099]
[1757785432027,1.2752,4632.7,4632.6,7.31394099]
[1757785432205,1.2752,4632.7,4632.6,1.54632596]
[1757785432401,1.2752,4632.7,4632.6,5.15432596]
[1757785432999,1.2752,4632.7,4632.6,1.54632596]
[1757785433205,1.41092,4632.7,4632.6,5.15432596]
[1757785433428,1.41092,4632.7,4632.6,3.608]
[1757785433627,2.15861503,4632.6,4632.4,1.54632596]
[1757785433833,2.15870822,4632.4,4632.3,3.608]
[1757785434000,0.1072,4632.2,4632.1,3.609]
[1757785434203,1.38988537,4632.2,4632.1,3.609]
[1757785434402,3.5486868,4632.2,4632.1,0.001]
[1757785435622,1.38988537,4632.2,4632.1,0.001]
[1757785435833,1.3683,4632.2,4632.1,0.001]
[1757785438061,0.4962,4632.7,4632.1,0.02258848]
[1757785438261,0.1072,4632.6,4632.2,3.607]
[1757785438561,0.1072,4632.6,4632.3,0.02158754]
[1757785438562,0.6014,4632.6,4632.3,0.02158754]
[1757785438759,0.6014,4632.6,4632.1,0.001]
[1757785438760,0.2983,4632.4,4632.1,0.001]
[1757785438960,0.2983,4632.4,4632.2,3.607]
[1757785439264,0.9628,4632.3,4632.2,3.607]
[1757785439464,1.2611,4632.3,4632.2,3.607]
[1757785440646,1.2611,4632.3,4632.1,1.16034686]
[1757785440960,0.2983,4632.3,4632.2,3.607]
[1757785441663,0.2983,4632.3,4632.2,5.76580143]
[1757785441865,0.1072,4632.6,4632.2,6.06680143]
[1757785442380,0.1072,4632.6,4632.3,0.02158754]
[1757785442581,0.1072,4632.6,4632.4,3.607]
[1757785442877,0.2983,4632.5,4632.4,3.607]
[1757785443175,0.7669,4632.5,4632.4,3.607]
[1757785443332,0.2983,4632.5,4632.3,1.15934686]
[1757785443534,0.2983,4632.5,4632.4,3.607]
[1757785443772,0.7669,4632.5,4632.4,3.607]
[1757785445683,1.2611,4632.5,4632.4,3.607]
[1757785445887,1.2611,4632.5,4632.3,1.15934686]
[1757785446183,1.3372729,4632.4,4632.3,3.607]
[1757785446384,1.6355729,4632.4,4632.3,3.607]
[1757785446736,1.28268537,4632.4,4632.3,3.607]
[1757785447055,3.44139359,4632.4,4632.3,3.607]
[1757785447249,3.44139359,4632.4,4632.1,1.16034686]
[1757785447250,2.15880143,4632.2,4632.1,1.16034686]
[1757785447564,0.02158537,4632.2,4632.1,4.76734686]
[1757785447738,1.28268537,4632.2,4632.1,4.76734686]
[1757785448135,3.4414868,4632.2,4632.1,4.76734686]
[1757785448533,3.4414868,4632.2,4632.1,3.608]
[1757785448838,4.01222251,4632.2,4632.1,3.608]
[1757785449034,1.85342108,4632.2,4632.1,3.608]
[1757785449351,1.85342108,4632.2,4632.1,4.76526242]
[1757785450071,1.28268537,4632.2,4632.1,1.15826242]
[1757785450365,1.28268537,4632.2,4632.1,4.76526242]
[1757785451782,1.28268537,4632.2,4632.1,1.15826242]
[1757785451984,1.28268537,4632.2,4632.1,4.76426242]
[1757785452184,3.4414868,4632.2,4632.1,3.607]
[1757785452390,1.85342037,4632.2,4632.1,3.607]
[1757785454558,1.35922037,4632.2,4632.1,3.607]
[1757785454765,0.2983,4632.2,4632.1,3.607]
[1757785461295,0.7675,4632.2,4632.1,3.607]
[1757785461797,1.2389,4632.2,4632.1,3.607]
[1757785461979,3.39770143,4632.2,4632.1,3.607]
[1757785462179,1.2389,4632.2,4632.1,3.607]
[1757785462380,3.39770143,4632.2,4632.1,3.607]
[1757785462580,1.2389,4632.2,4632.1,3.607]
[1757785463397,0.2983,4632.2,4632.1,1.15826242]
[1757785463571,0.1072,4632.3,4632.1,8.14437415]
[1757785463772,0.1092,4632.3,4632.2,2.0819903]
[1757785464105,0.1092,4632.3,4632.2,4.24079173]
[1757785464305,0.1092,4632.3,4632.2,4.4105241]
[1757785465787,0.002,4632.3,4632.2,4.4105241]